Cogmind - Beta 15 @@@ ROGUE MODE // 2025.07.09 @ 19:28:41 Player: Skysub Result: Destroyed by H-66 Slayer with Gauss Rifle Performance ------------- Evolutions (5) 2500 Regions Visited (8) 1600 Robots Destroyed (161) 805 Value Destroyed (7612) 7612 Prototype IDs (22) 440 Alien Tech Used (0) 0 Bonus (4929) 4929 TOTAL SCORE: 17886 Bonus ------- High Alert Combat Kills 2103 Follower Combat Kills 626 Entered Garrisons 400 Used RIF Installer 1000 Registered with UFD 300 Met Optimus in HQ 500 Cogmind --------- Core Integrity 0/1000 Matter 192/300 Energy 62/100 System Corruption 22% Temperature Cool (2) Movement Flying (35) Location -5/Factory Parts ------- > --- POWER (2) -------- (None) > --- PROPULSION (3) --- VTOL Module > --- UTILITY (9) ------ Enhanced Optical Array Improved Target Analyzer Relay Coupler [NC] (33) Relay Coupler [Behemoth] (16) A0-MCA's Component Scanner > --- WEAPON (3) ------- (None) > --- INVENTORY (5) ---- Improved Remote Datajack Plasma Cutter Heavy Mace Large Botcube Peak State ------------ > --- POWER ------------ Micro Fission Core Meta Core > --- PROPULSION ------- Improved Medium Treads Armored Heavy Treads > --- UTILITY ---------- Advanced Heat Sink Improved Cooling System Large Storage Unit Enhanced Optical Array Improved Target Analyzer Improved Weapon Cycler Improved Light Armor Plating Medium Reflective Plating A0-MCA's Component Scanner > --- WEAPON ----------- Heavy Laser Gatling Laser Flak Gun Improved Remote Datajack > --- INVENTORY -------- Armored Heavy Treads Improved Light Armor Plating Improved Light Armor Plating Force Field Relay Coupler [Grunt] Relay Coupler [Grunt] Relay Coupler [Proto] High-powered Tractor Beam Rocket Launcher Plasma Cutter Heavy Mace Vortex Trap Large Botcube [Rating: 107] Favorites ----------- Power Meta Core Engine Deuterium Engine Power Core Meta Core Reactor Hybrid Antimatter Reactor Propulsion Light Treads Treads Light Treads Leg Flexi-carbon Leg Wheel Wheel Flight Unit VTOL Module Utility Large Storage Unit Device Improved Cooling System Storage Large Storage Unit Processor A0-MCA's Component Scanner Hackware Relay Coupler [Sentry] Protection Improved Light Armor Plating Weapon Autogun Energy Gun Gatling Laser Ballistic Gun Autogun Launcher Grenade Launcher Special Weapon Improved Remote Datajack Impact Weapon Heavy Mace Build | -11 -10 -10 -9 -6 -6 -5 -5 -5 ------- Run | Yrd Mat Sub Scr Fac Gar Fac Gar Fac Slots Evolved 10 | . . . . 8 . 2 . . Power 1 | . . . . . . 1 . . Propulsion 1 | . . . . 1 . . . . Utility 7 | . . . . 6 . 1 . . Weapon 1 | . . . . 1 . . . . Parts Attached 121 | 6 6 7 7 14 29 6 22 24 Power 14 | 1 1 1 2 . . 1 5 3 Engine 7 | 1 1 1 1 . . . 2 1 Core 6 | . . . 1 . . 1 3 1 Reactor 1 | . . . . . . . . 1 Propulsion 25 | 2 . 2 2 3 9 . 4 3 Treads 13 | 2 . . . . 6 . 3 2 Leg 9 | . . . 2 3 3 . 1 . Wheel 2 | . . 2 . . . . . . Hover . | . . . . . . . . . Flight 1 | . . . . . . . . 1 Utility 46 | 1 2 2 . 7 15 3 5 11 Device 18 | . 1 1 . 2 8 . 2 4 Storage 3 | 1 1 . . . . . 1 . Processor 7 | . . . . 3 1 2 . 1 Hackware 7 | . . . . . . 1 1 5 Protection 11 | . . 1 . 2 6 . 1 1 Artifact . | . . . . . . . . . Weapon 36 | 2 3 2 3 4 5 2 8 7 Energy Gun 13 | 2 1 . . 1 2 . 3 4 Energy Cannon . | . . . . . . . . . Ballistic Gun 16 | . 1 1 2 3 2 . 5 2 Ballistic Cannon . | . . . . . . . . . Launcher 3 | . 1 . . . . 1 . 1 Special Weapon 2 | . . . . . 1 1 . . Impact Weapon 2 | . . 1 1 . . . . . Slashing Weapon . | . . . . . . . . . Piercing Weapon . | . . . . . . . . . Special Melee Weapon . | . . . . . . . . . Unidentified Prototypes . | . . . . . . . . . Corrupted Parts 3 | . . . . . . . 2 1 System Corruption 13 | . . . . . . . 11 2 Parts Lost 68 | . 5 4 . 4 13 . 15 27 Power 10 | . 2 1 . . . . 2 5 Propulsion 13 | . . 2 . 1 5 . 2 3 Utility 21 | . 1 . . 1 4 . 6 9 Weapon 24 | . 2 1 . 2 4 . 5 10 Highest Loss Streak 10 | . 2 3 . 3 6 . 10 10 To Critical Strikes 1 | . . . . . . . . 1 Average Backups 9 | 1 7 10 6 10 10 11 11 11 Power . | . . . . . . . . . Propulsion 1 | . 1 2 . 2 1 . . . Utility 4 | . 2 2 3 3 5 7 7 6 Weapon 2 | . 2 5 2 2 2 2 1 1 Tool/Special . | . . . . . . . . . Unused Backups 36 | . . 1 18 4 2 2 2 7 Power 1 | . . . . 1 . . . . Propulsion 5 | . . 1 3 . 1 . . . Utility 20 | . . . 10 1 . 1 2 6 Weapon 8 | . . . 5 2 1 . . . Tool/Special 2 | . . . . . . 1 . 1 Average Slot Usage (%) 74 | . 91 89 49 72 84 86 78 79 Engine 2 | . 9 4 . . . . 4 7 Core 2 | . . . . 5 5 8 5 . Treads 8 | . 28 24 . . 10 10 6 8 Leg 2 | . . . 1 14 4 . 1 . Wheel 4 | . . 2 13 . . . . . Device 9 | . 10 13 . 11 13 12 12 12 Storage 9 | . 14 14 13 5 5 5 7 6 Processor 8 | . . . . 8 14 14 16 18 Protection 5 | . . . 5 8 10 10 2 2 Energy Gun 5 | . 21 4 . 1 6 8 2 4 Ballistic Gun 8 | . 1 8 12 10 8 4 8 3 Launcher 1 | . 4 6 . . . . . 2 Impact Weapon 2 | . . 9 . 2 . 1 3 1 Peak Build Rating 107 | 6 7 14 32 72 88 107 106 89 Average Rating 45 | 4 6 8 8 57 78 102 74 73 On Entrance 44 | . 6 6 13 32 72 86 106 80 Naked Turns 13 | . . . 13 . . . . . Heaviest Build 70 | 11 30 32 33 46 54 61 67 70 Greatest Support 98 | 40 40 40 37 58 90 90 98 98 Greatest Overweight (x) 13 | . . 3 3 4 3 . . 13 Average Overweight (x) . | . . . 1 . . . . . Largest Inventory Capacity 15 | 8 15 15 15 15 15 15 15 15 Average Capacity 14 | 7 13 15 14 15 15 15 15 14 Most Carried 15 | 3 10 15 15 15 15 15 15 15 Average Carried 11 | 1 7 10 7 14 14 14 14 13 Final Capacity 15 | 8 15 15 15 15 15 15 15 5 Final Carried 15 | 3 10 14 15 15 15 15 14 5 Class Distribution -------------------- 49% | Mutant 20% | Scavenger-Tank 12% | Scavenger-Mutant 7% | Bothacker-Mutant 5% | Scavenger-Gunner Dominant Class ---------------- Mutant | -10/Materials Mutant | -10/Subcaves Mutant | -9/Scraptown Mutant | -6/Factory Scavenger-Tank | -6/Garrison Scavenger-Tank | -5/Factory Bothacker-Mutant | -5/Garrison Scavenger-Mutant | -5/Factory Resources | -11 -10 -10 -9 -6 -6 -5 -5 -5 ----------- Run | Yrd Mat Sub Scr Fac Gar Fac Gar Fac Matter Collected 4965 | 181 202 249 10 775 1174 128 1188 1058 Remotely 1994 | . . . . 124 274 . 660 936 Salvage Created 6545 | 119 850 79 . 1174 1523 310 1311 1179 Parts 312 | 6 55 5 . 59 56 10 48 73 Haulers Intercepted 1 | . 1 . . . . . . . Recyclers Shooed 4 | . . . . 3 . 1 . . Parts Field Recycled . | . . . . . . . . . Retrieved Matter . | . . . . . . . . . Parts Self-Destructed 1 | . . 1 . . . . . . Prevented . | . . . . . . . . . Kills | -11 -10 -10 -9 -6 -6 -5 -5 -5 ------- Run | Yrd Mat Sub Scr Fac Gar Fac Gar Fac Combat Hostiles Destroyed 121 | . 20 3 . 19 31 7 19 22 Guns 97 | . 16 1 . 19 31 5 16 9 AOE 20 | . 4 2 . . . 1 . 13 Classes Destroyed 18 | 2 7 1 . 1 3 1 2 1 Worker 7 | . 4 . . . . . . 3 Builder 14 | . 5 . . 1 . . . 8 Tunneler 4 | 3 1 . . . . . . . Hauler 1 | . 1 . . . . . . . Recycler 8 | 1 1 . . 4 . . . 2 Operator 2 | . 1 . . . . . . 1 Watcher 4 | . 1 . . . 1 2 . . Swarmer 36 | . 9 . . 13 3 . 8 3 Grunt 54 | . 11 . . 5 20 3 4 11 Brawler 1 | . . . . . . 1 . . Duelist 3 | . . . . . 1 1 1 . Sentry 7 | . . . . . 5 . 2 . Specialist 1 | . . . . . . . 1 . Hunter 6 | . . . . . . . 2 4 Programmer 5 | . . . . 1 . 2 . 2 Heavy 2 | . . . . . . . . 2 Behemoth 3 | . . . . . 2 . 1 . Subdweller 3 | . . 3 . . . . . . Best Kill Streak 10 | 4 5 1 . 5 5 7 3 10 Combat Bots Only 7 | . 4 1 . 4 5 7 3 5 Max Kills in Single Turn 5 | 1 2 1 . 2 1 2 2 5 Gunslinging 1 | . . . . 1 . 1 1 . Exploded 3 | . 1 1 . . . 1 . 3 Melee . | . . . . . . . . . Uniques/NPCs Destroyed . | . . . . . . . . . Combat | -11 -10 -10 -9 -6 -6 -5 -5 -5 -------- Run | Yrd Mat Sub Scr Fac Gar Fac Gar Fac Hostile Shots Fired 855 | . 80 17 . 92 252 13 166 235 Missed 229 | . 25 5 . 26 80 3 40 50 Hits 626 | . 55 12 . 66 172 10 126 185 Melee 4 | . . . . . 1 . 3 . Projectile 622 | . 55 12 . 66 171 10 123 185 AOE 4 | . . 3 . . . . . 1 Critical Strikes 22 | . . . . 3 6 1 1 11 Part Disruptions 1 | . . . . . . . . 1 Damage Taken 11287 | . 628 459 . 1118 2517 296 2176 4093 Core 1378 | . 113 77 . 29 145 . 185 829 Absorbed by Shields 532 | . . . . . 75 . 250 207 Reduced by Siege Mode 49 | . . . . . . . . 49 Ignored by Resistances 52 | . . . . . 30 22 . . Core Remaining (%) 67 | 100 . . 24 . 79 . . . Volleys Fired 464 | 6 70 22 . 69 92 24 96 85 Largest 3 | 2 2 2 . 3 3 3 3 3 Hottest 182 | 90 90 40 . 122 179 182 182 175 Shots Fired 1006 | 12 132 30 . 184 243 52 210 143 Gun 950 | 12 123 23 . 184 243 45 199 121 Cannon . | . . . . . . . . . Launcher 45 | . 9 7 . . . 5 3 21 Special 11 | . . . . . . 2 8 1 Kinetic 610 | . 6 23 . 156 177 17 146 85 Thermal 334 | 12 117 . . 28 66 28 58 25 Explosive 45 | . 9 7 . . . 5 3 21 Electromagnetic 11 | . . . . . . . . 11 Robot Hit Streak 22 | 3 9 8 . 11 22 22 17 21 Robot Miss Streak 6 | 2 4 2 . 3 4 6 5 4 Penetration Max 1 | . . . . . . . . 1 Secondary Targets 18 | . 1 . . 5 3 2 5 2 Max Gunslinging Chain 1 | . 1 . . 1 1 1 1 1 Shots Hit Robots 736 | 7 84 21 . 124 183 38 178 101 Core Hits 473 | 5 50 11 . 56 146 45 90 70 Critical Kills 5 | . . . . . 1 . 2 2 Critical Parts Destroyed 9 | . . . . . 3 . 4 2 Critical Strikes 34 | . 6 . . 2 6 1 13 6 Burn 19 | . 6 . . 2 2 1 7 1 Destroy 14 | . . . . . 4 . 6 4 Corrupt 1 | . . . . . . . . 1 Melee Attacks 115 | . . 6 . 3 4 3 99 . Impact 115 | . . 6 . 3 4 3 99 . Slashing . | . . . . . . . . . Piercing . | . . . . . . . . . Sneak Attacks . | . . . . . . . . . Combat Hostiles . | . . . . . . . . . Follow-up Attacks . | . . . . . . . . . Damage Inflicted 17448 | 92 1363 528 . 1921 4120 1101 3379 4944 Guns 12524 | 92 902 167 . 1921 4120 634 2978 1710 Cannons . | . . . . . . . . . Explosions 4614 | . 439 336 . . . 467 138 3234 Melee 254 | . . 25 . . . . 229 . Ramming 22 | . 22 . . . . . . . Kinetic 7894 | . 45 167 . 1558 2938 211 1811 1164 Thermal 4800 | 92 857 . . 363 1182 423 1201 682 Explosive 4329 | . 439 336 . . . 467 138 2949 Electromagnetic 149 | . . . . . . . . 149 Impact 254 | . . 25 . . . . 229 . Slashing . | . . . . . . . . . Piercing . | . . . . . . . . . Highest Corruption 22 | . . . . 5 5 . 11 22 Average Corruption 9 | . . . . 5 5 . 10 16 Corruption Purged . | . . . . . . . . . Corruption Blocked . | . . . . . . . . . Effects 164 | . . . . 14 50 . 53 47 Message Errors 42 | . . . . 5 15 . 12 10 Matter Fused 29 | . . . . 2 10 . 10 7 Heat Flow Errors 28 | . . . . 2 7 . 10 9 Energy Discharges 11 | . . . . 1 4 . 4 2 Parts Rejected 6 | . . . . . 2 . 1 3 Parts Fused 1 | . . . . 1 . . . . Data Loss (minor) 21 | . . . . 2 4 . 9 6 Data Loss (major) 4 | . . . . . 1 . 2 1 Misfires 4 | . . . . . 3 . . 1 Alerts 4 | . . . . . 1 . 1 2 Misdirections 2 | . . . . . . . . 2 Weapon Failures 12 | . . . . 1 3 . 4 4 Overload Shots . | . . . . . . . . . Overflow Damage 250 | . 2 5 . . . 6 102 135 Projectiles . | . . . . . . . . . Explosions 148 | . 2 5 . . . 6 . 135 Melee 102 | . . . . . . . 102 . Knockbacks 1 | . . 1 . . . . . . Impact 1 | . . 1 . . . . . . Kinetic . | . . . . . . . . . Secondary . | . . . . . . . . . Self-Inflicted Damage 171 | . 53 24 . . . . . 94 Shots 9 | . 4 2 . . . . . 3 Rammed 2 | . 2 . . . . . . . Targets Rammed 2 | . 2 . . . . . . . Kicked . | . . . . . . . . . Crushed . | . . . . . . . . . Highest Temperature 559 | 150 294 . . 436 559 283 232 244 Average Temperature 93 | 77 92 . . 111 104 89 54 56 Received Heat Transfer 2648 | . 204 60 . 360 1187 63 258 516 Effects 11 | . . . . 1 10 . . . Shutdowns 2 | . . . . 1 1 . . . Interference 9 | . . . . . 9 . . . Siege Activations 1 | . . . . . . . . 1 Total Turns 19 | . . . . . . . . 19 Longest Duration 19 | . . . . . . . . 19 Martial Activations . | . . . . . . . . . Shielding Activations . | . . . . . . . . . Robots Disrupted . | . . . . . . . . . Combat Hostiles . | . . . . . . . . . Robots Corrupted 1 | . . . . . . . 1 . Combat Hostiles 1 | . . . . . . . 1 . Parts Fried 1 | . . . . . . . . 1 Impact Corruptions 3 | . . . . . . . 3 . Robots Melted 3 | . . . . . . 1 2 . Combat Hostiles 3 | . . . . . . 1 2 . Parts Melted 23 | . 6 1 . . 6 1 8 1 Heat Transferred 11324 | 248 2690 . . 851 2689 837 3019 990 Parts Sabotaged . | . . . . . . . . . Parts Stolen . | . . . . . . . . . Parts Stripped . | . . . . . . . . . Power Chain Reactions . | . . . . . . . . . Alert | -11 -10 -10 -9 -6 -6 -5 -5 -5 ------- Run | Yrd Mat Sub Scr Fac Gar Fac Gar Fac Maximum Alert Level 5 | . 1 . . 1 4 4 5 4 Low Security (%) 27 | 100 97 . . 89 4 . . . Level 1 4 | . 2 . . 10 13 . . . Level 2 8 | . . . . . 14 51 . . Level 3 37 | . . . . . 50 13 63 61 Level 4 20 | . . . . . 16 34 31 38 Level 5 1 | . . . . . . . 4 . High Security . | . . . . . . . . . Max Security . | . . . . . . . . . Peak Influence 1831 | 20 211 . . 253 1200 1165 1831 1517 Initial 961 | . 6 . . . 168 630 751 961 Average 718 | 4 122 . . 92 750 834 1122 1094 Influence Increases 5872 | 20 639 . . 547 1162 948 1310 1246 Destroy 0b10 Robot/C 2720 | . 400 . . 380 640 280 520 500 Destroy 0b10 Robot/NC 255 | 20 70 . . 25 5 40 20 75 Destroy Leader 370 | . 84 . . 50 40 44 50 102 Allied During Kill 149 | . . . . . 9 42 79 19 Successful Hack 51 | . 6 . . 14 . 8 14 9 Disable Machine 450 | . 15 . . 15 . 240 30 150 Anti-Garrison Action 850 | . . . . . 300 150 400 . Destroy Structure 772 | . 49 . . 3 33 144 197 346 Lose Combat Pursuer 255 | . 15 . . 60 135 . . 45 Influence Decreases 4411 | 10 488 161 . 306 203 1074 553 1616 Entered New Map 1918 | . 4 78 . . 73 570 323 870 Time Decay 1503 | 10 434 83 . 266 . 294 . 416 Lost Part 640 | . 50 . . 40 130 . 150 270 Lost Ally 200 | . . . . . . 60 80 60 Purge Threat 150 | . . . . . . 150 . . Squads Dispatched 23 | . 6 . . 2 . 5 . 10 Investigation 5 | . 3 . . 1 . . . 1 Extermination 4 | . . . . 1 . 1 . 2 Reinforcement 11 | . 3 . . . . 2 . 6 Assault 3 | . . . . . . 2 . 1 Garrison . | . . . . . . . . . Intercept . | . . . . . . . . . Searches Triggered . | . . . . . . . . . Construction Impeded 3 | . . . . . . 1 . 2 Haulers Reinforced 2 | . . . . . . . . 2 Active Scanning Responses . | . . . . . . . . . Cargo Convoy Interrupts . | . . . . . . . . . Stealth | -11 -10 -10 -9 -6 -6 -5 -5 -5 --------- Run | Yrd Mat Sub Scr Fac Gar Fac Gar Fac Distress Signals 4 | . 1 . . 2 . 1 . . Communications Jammed 5 | . . . . . . . . 5 Distress Signals 2 | . . . . . . . . 2 Times Spotted 187 | . 28 4 . 23 45 16 32 39 Peak Tracking Total 6 | . 4 2 . 6 6 5 4 6 Tactical Retreats 13 | . 1 1 . 3 5 . . 3 Traps | -11 -10 -10 -9 -6 -6 -5 -5 -5 ------- Run | Yrd Mat Sub Scr Fac Gar Fac Gar Fac Traps Triggered 8 | . 3 2 . 1 . 1 1 . Indirectly . | . . . . . . . . . Trap Hack Attempts . | . . . . . . . . . Triggered . | . . . . . . . . . Disarmed . | . . . . . . . . . Reprogrammed . | . . . . . . . . . Reused . | . . . . . . . . . Traps Extracted . | . . . . . . . . . Installed . | . . . . . . . . . Triggered . | . . . . . . . . . Most Traps Carried 3 | . . . 3 2 2 1 1 . Machines | -11 -10 -10 -9 -6 -6 -5 -5 -5 ---------- Run | Yrd Mat Sub Scr Fac Gar Fac Gar Fac Machines Disabled 40 | . 1 1 . 1 4 17 6 10 Max in Single Turn 5 | . 1 1 . 1 1 . 1 5 Garrison Access 1 | . . . . . . 1 . . Garrison Relay 7 | . . . . . 3 . 4 . Phase Generator 1 | . . . . . 1 . . . Machines Repaired . | . . . . . . . . . Machines Dismantled 3 | . . . . . 1 . 2 . Machines Sabotaged . | . . . . . . . . . Overloaded Fab Kills . | . . . . . . . . . Hacking | -11 -10 -10 -9 -6 -6 -5 -5 -5 --------- Run | Yrd Mat Sub Scr Fac Gar Fac Gar Fac Machines Accessed 28 | . 5 1 4 5 2 4 4 3 Terminals 17 | . 3 . . 2 2 3 4 3 Fabricators 1 | . . . . 1 . . . . Repair Stations . | . . . . . . . . . Recycling Units 3 | . 2 . . 1 . . . . Scanalyzers . | . . . . . . . . . Garrison Access 2 | . . . . 1 . 1 . . Total Hacks 72 | . 14 1 8 15 3 12 8 11 Successful 35 | . 8 1 8 8 1 6 1 2 Failed 37 | . 6 . . 7 2 6 7 9 Catastrophic 7 | . . . . 1 2 1 . 3 Database Lockouts . | . . . . . . . . . Manual 32 | . 8 . . 5 2 9 1 7 Terminals 44 | . 8 . . 5 3 9 8 11 Fabricators 4 | . . . . 4 . . . . Repair Stations . | . . . . . . . . . Recycling Units 11 | . 6 . . 5 . . . . Scanalyzers . | . . . . . . . . . Garrison Access 4 | . . . . 1 . 3 . . Terminal Hacks 17 | . 1 1 8 1 1 2 1 2 Record 7 | . . . 7 . . . . . Branch Access Points 1 | . . . . . . . . 1 Emergency Access Points 1 | . . . . . . . 1 . Unreport Threat 1 | . . . . . . 1 . . Locate Traps 1 | . . . . 1 . . . . Registered Components 1 | . . . . . . 1 . . Zone Layout 2 | . 1 . . . . . . 1 Garrison Registry 1 | . . . . . 1 . . . Proto ID Catalog 2 | . . 1 1 . . . . . Fabricator Hacks 2 | . . . . 2 . . . . Network Status 2 | . . . . 2 . . . . Repair Station Hacks . | . . . . . . . . . Recycling Unit Hacks 6 | . 5 . . 1 . . . . Report Inventory 4 | . 3 . . 1 . . . . Retrieve Components 2 | . 2 . . . . . . . Scanalyzer . | . . . . . . . . . Garrison Access Hacks 3 | . . . . 1 . 2 . . Unlock Access 2 | . . . . 1 . 1 . . Coupler Status 1 | . . . . . . 1 . . Unauthorized Hacks 7 | . 2 . . 3 . 2 . . Terminals 5 | . 2 . . 2 . 1 . . Botnet 3 | . . . . 2 . 1 . . Skim 2 | . 2 . . . . . . . Fabricators 1 | . . . . 1 . . . . Report 1 | . . . . 1 . . . . Repair Stations . | . . . . . . . . . Recycling Units . | . . . . . . . . . Scanalyzers . | . . . . . . . . . Garrison Access 1 | . . . . . . 1 . . Broadcast 1 | . . . . . . 1 . . Data Cores Recovered 2 | . 1 . . . . . . 1 Used 1 | . 1 . . . . . . . Hacking Detections 21 | . 4 . . 4 2 4 4 3 Full Trace Events 4 | . 2 . . 1 . . . 1 Feedback Events . | . . . . . . . . . Feedback Blocked . | . . . . . . . . . Robot Schematics Acquired . | . . . . . . . . . Robots Built . | . . . . . . . . . Authchips . | . . . . . . . . . Time . | . . . . . . . . . Total Robot Build Rating . | . . . . . . . . . Part Schematics Acquired . | . . . . . . . . . Parts Built . | . . . . . . . . . Authchips . | . . . . . . . . . Time . | . . . . . . . . . Total Part Build Rating . | . . . . . . . . . Parts Repaired . | . . . . . . . . . Time . | . . . . . . . . . Parts Recycled . | . . . . . . . . . Recycled Matter . | . . . . . . . . . Retrieved Matter . | . . . . . . . . . Retrieved Components 10 | . 10 . . . . . . . Parts Scanalyzed . | . . . . . . . . . Part Schematics Acquired . | . . . . . . . . . Parts Damaged . | . . . . . . . . . Bothacking | -11 -10 -10 -9 -6 -6 -5 -5 -5 ------------ Run | Yrd Mat Sub Scr Fac Gar Fac Gar Fac Used RIF Installer 2 | . . . . . 1 . 1 . Coupler Efficiency 1 | . . . . . . . 1 . Robots Hacked 4 | . . . . . . 1 2 1 Non-combat . | . . . . . . . . . Combat 4 | . . . . . . 1 2 1 Robot Hacks Applied 5 | . . . . . . 1 3 1 parse_system 1 | . . . . . . . 1 . formatsys_high 4 | . . . . . . 1 2 1 Relay Couplers Released 30 | . . . . . 12 1 17 . Machine Destruction 30 | . . . . . 12 1 17 . Attached 5 | . . . . . . 1 1 3 Fabnet Peak Effective % . | . . . . . . . . . Robots Rewired 2 | . . . . . 1 1 . . Allies Hacked . | . . . . . . . . . Hacks Repelled . | . . . . . . . . . Allies | -11 -10 -10 -9 -6 -6 -5 -5 -5 -------- Run | Yrd Mat Sub Scr Fac Gar Fac Gar Fac Total Allies 10 | . . . . . 1 2 6 1 Largest Group 4 | . . . . . 1 3 4 2 Highest-Rated Group 209 | . . . . . 148 209 199 124 Highest-Rated Ally 148 | . . . . . 148 148 95 95 Total Orders . | . . . . . . . . . Ally Attacks 140 | . . . . . 7 54 49 30 Total Damage 4229 | . . . . . 199 1802 1538 690 Kills 25 | . . . . . 1 13 7 4 Allies Corrupted 1 | . . . . . . . 1 . Allies Melted . | . . . . . . . . . Intel | -11 -10 -10 -9 -6 -6 -5 -5 -5 ------- Run | Yrd Mat Sub Scr Fac Gar Fac Gar Fac Active Infowar (turns) 5312 | . . 785 178 822 2 639 1877 1009 Optics 3525 | . . . . . . 639 1877 1009 Structural 1787 | . . 785 178 822 2 . . . Jamming 46 | . . . . . . . . 46 Robot Analysis Total . | . . . . . . . . . Derelict Logs Recovered 5 | . . 1 4 . . . . . Drone Launches . | . . . . . . . . . Drone Recoveries . | . . . . . . . . . Exploration | -11 -10 -10 -9 -6 -6 -5 -5 -5 ------------- Run | Yrd Mat Sub Scr Fac Gar Fac Gar Fac Turns Passed 11205 | 99 1153 844 2987 822 1773 641 1877 1009 Spaces Moved 6595 | 45 539 488 2822 375 830 331 741 424 Core 35 | 5 . . 20 . . . . 10 Treads 3200 | 40 539 398 . . 745 331 741 406 Legs 401 | . . . 8 308 85 . . . Wheels 2951 | . . 90 2794 67 . . . . Hover . | . . . . . . . . . Flight 8 | . . . . . . . . 8 Fastest Speed 35 | 50 160 95 50 123 123 165 160 35 Average Speed 134 | 147 160 151 102 129 162 165 165 172 Slowest Speed 700 | 160 160 160 130 200 330 165 170 700 Overloaded Moves . | . . . . . . . . . Propulsion Burnouts . | . . . . . . . . . Robots Hopped . | . . . . . . . . . Potential Cave-ins . | . . . . . . . . . Cave-ins Triggered . | . . . . . . . . . Exploration Rate (%) 45 | 3 73 25 88 11 78 13 95 19 Regions Visited 8 Branch Regions 2 Pre-discovered Areas 1 | . . . 1 . . . . . Known Exits Taken 2 | . . . . 1 . 1 . . Unknown Exits Taken 4 | 1 1 1 1 . . . . . Scrap Searched 14 | . . 6 8 . . . . . Spaces Dug 59 | . . . . 3 3 3 50 . Terrain Destroyed 327 | . 49 29 . 3 3 3 58 182 Melee 59 | . . . . 3 3 3 50 . Projectile . | . . . . . . . . . AOE 268 | . 49 29 . . . . 8 182 Terrain Rammed . | . . . . . . . . . Walls Destroyed . | . . . . . . . . . Machines Disabled . | . . . . . . . . . Actions | -11 -10 -10 -9 -6 -6 -5 -5 -5 --------- Run | Yrd Mat Sub Scr Fac Gar Fac Gar Fac Total 7927 | 63 695 543 2944 609 1082 388 1026 577 Wait 288 | 4 71 7 1 120 57 14 8 6 Move 6585 | 44 538 487 2821 374 828 330 739 424 Hop . | . . . . . . . . . Pick Up 124 | 3 8 8 50 16 15 4 11 9 Fast Attach 74 | 6 2 2 7 4 19 2 13 19 Attach 43 | . 2 3 1 9 6 3 10 9 Detach 18 | . . . 7 1 1 2 2 5 Swap 59 | . 2 7 2 6 16 4 18 4 Drop 114 | . . 1 55 7 21 2 12 16 Fire 464 | 6 70 22 . 69 92 24 96 85 Melee 115 | . . 6 . 3 4 3 99 . Ram . | . . . . . . . . . Kick . | . . . . . . . . . Crush 2 | . 2 . . . . . . . Escape Stasis 2 | . . . . . . . 2 . Rewire 14 | . . . . . 14 . . . Trap . | . . . . . . . . . Miscellaneous 25 | . . . . . 9 . 16 . Route ------- -11/Scrapyard -10/Materials (discovered 4 exits: [*Mat x2] / [*Min] / *Sub) -10/Subcaves (discovered 3 exits: [*Mat] / [Rec] / *Scr) -9/Scraptown (discovered 2 exits: *Fac x2) -6/Factory -6/Garrison (discovered 3 exits: *Fac x3) -5/Factory (discovered 2 exits: *Upp / Gar) -5/Garrison (discovered 3 exits: *Fac x3) -5/Factory (discovered 2 exits: Upp x2) History --------- Turn | Location | Event 13 | -11/Scrapyard | Discovered new exit (range 15) 100 | -11/Scrapyard | Entered Materials 243 | -10/Materials | Discovered new exit (range 14) 313 | -10/Materials | Build established: Mutant 710 | -10/Materials | Discovered new exit (range 4) 912 | -10/Materials | Discovered new exit (range 16) 1192 | -10/Materials | Discovered new exit (range 6) 1253 | -10/Materials | Entered Subcaves 1254 | -10/Subcaves | Approached by a straggling Scientist 1374 | -10/Subcaves | Discovered new exit (range 9) 1540 | -10/Subcaves | Discovered new exit (range 8) 1586 | -10/Subcaves | Scientist uncovered a shortcut to Scraptown 1747 | -10/Subcaves | Core integrity fell below 50% 1759 | -10/Subcaves | Learned location of 1 exit from Materials 1965 | -10/Subcaves | Visited 4L-MR0's lab 1985 | -10/Subcaves | Found Meta Core 2094 | -10/Subcaves | Lost 3 parts (1p1n1w) 2097 | -10/Subcaves | Entered Scraptown 2173 | -9/Scraptown | Scanned Subdweller tech in exchange for log data 2174 | -9/Scraptown | Learned location of 2 exits from Research 2175 | -9/Scraptown | Learned Factory terminal intel 2176 | -9/Scraptown | Learned location of 1 exit from Research 2177 | -9/Scraptown | Learned Factory security intel 2241 | -9/Scraptown | Visited Bundlers 2295 | -9/Scraptown | Visited TADAMA 2305 | -9/Scraptown | Visited Red Mages 2532 | -9/Scraptown | Visited Symbiants 2576 | -9/Scraptown | Visited Cyclists 2609 | -9/Scraptown | Visited Spacefarers 2730 | -9/Scraptown | Discovered new exit (range 13) 3015 | -9/Scraptown | Visited UFD Registry 3015 | -9/Scraptown | Registered with UFD as "Shortface" 3138 | -9/Scraptown | Guru changed UFD alias to "Nulltorch" 3349 | -9/Scraptown | Visited Abandonware Association 3361 | -9/Scraptown | Learned abandonware demo "REVENGE.EXE" 3361 | -9/Scraptown | Learned abandonware demo "TRNCOAT.EXE" 3363 | -9/Scraptown | Learned abandonware demo "OVRCLOCK.EXE" 3384 | -9/Scraptown | Visited Curators Association 3400 | -9/Scraptown | Visited A0-MCA Data Center 3405 | -9/Scraptown | Given a C rating by A0-MCA 3409 | -9/Scraptown | Found A0-MCA's Component Scanner 3455 | -9/Scraptown | Visited Botcube Research 3463 | -9/Scraptown | Found Lrg. Botcube 3479 | -9/Scraptown | Visited Scrapoid Research Area 3495 | -9/Scraptown | Visited Research Penetration Think Tank 3518 | -9/Scraptown | Visited LU-1G1's Boring Crew 3537 | -9/Scraptown | Visited Chapter 10 3552 | -9/Scraptown | Visited Science Guys 3582 | -9/Scraptown | Visited Science Testing Area 3782 | -9/Scraptown | Entered Cyclist Reading Room 4499 | -9/Scraptown | Found Relay Coupler [Proto] 4809 | -9/Scraptown | Attached Meta Core, gained temporary slots: Propulsion, Utility, Weapon 5002 | -9/Scraptown | Met Optimus 5002 | -9/Scraptown | Accepted into 0bPrime 5082 | -9/Scraptown | Discovered new exit (range 3) 5084 | -9/Scraptown | Entered Factory 5084 | -6/Factory | Evolved 8 slots: Propulsion x1, Utility x6, Weapon x1 5086 | -6/Factory | Loaded intel: 28 terminal locations 5697 | -6/Factory | Lost 3 parts (1u2w) 5902 | -6/Factory | Spotted B-75 Beast 5905 | -6/Factory | Identified exit to Garrison 5906 | -6/Factory | Entered Garrison 5989 | -6/Garrison | Phase Generator disabled 6044 | -6/Garrison | Triggered checkpoint 6236 | -6/Garrison | Garrison Relay disabled 6278 | -6/Garrison | Triggered checkpoint 6373 | -6/Garrison | Build established: Scavenger-Gunner 6441 | -6/Garrison | Spotted B-75 Beast 6483 | -6/Garrison | Destroyed B-75 Beast 6512 | -6/Garrison | Triggered checkpoint 6515 | -6/Garrison | Lost 6 parts (3n2u1w) 6536 | -6/Garrison | Triggered checkpoint 6591 | -6/Garrison | Lost 3 parts (2u1w) 6920 | -6/Garrison | Triggered checkpoint 6976 | -6/Garrison | Spotted B-75 Beast 6992 | -6/Garrison | Destroyed B-75 Beast 7019 | -6/Garrison | Build established: Scavenger-Tank 7059 | -6/Garrison | Discovered new exit (range 14) 7090 | -6/Garrison | Rewired B-90 Cyclops 7198 | -6/Garrison | Triggered checkpoint 7237 | -6/Garrison | Garrison Relay disabled 7378 | -6/Garrison | Triggered checkpoint 7380 | -6/Garrison | Triggered checkpoint 7459 | -6/Garrison | Installed Relay Interface Framework 7491 | -6/Garrison | Discovered new exit (range 3) 7546 | -6/Garrison | Discovered new exit (range 57) 7546 | -6/Garrison | Discovered new exit (range 8) 7546 | -6/Garrison | Discovered new exit (range 70) 7577 | -6/Garrison | Garrison Relay disabled 7679 | -6/Garrison | Entered Factory 7679 | -5/Factory | Accompanied by 1 ally 7679 | -5/Factory | Evolved 2 slots: Power x1, Utility x1 7760 | -5/Factory | Discovered new exit (range 21) 8080 | -5/Factory | Destroyed 7 combat bots 8318 | -5/Factory | Identified exit to Garrison 8320 | -5/Factory | Entered Garrison 8360 | -5/Garrison | Expanded RIF knowledge: Coupler Efficiency 8386 | -5/Garrison | Triggered checkpoint 8405 | -5/Garrison | Garrison Relay disabled 8518 | -5/Garrison | Spotted B-75 Beast 8646 | -5/Garrison | Triggered checkpoint 8655 | -5/Garrison | Triggered checkpoint 8690 | -5/Garrison | Destroyed B-75 Beast 8718 | -5/Garrison | Lost 10 parts (1p5u4w) 8818 | -5/Garrison | Triggered checkpoint 8832 | -5/Garrison | System corruption reached 10% 8859 | -5/Garrison | Lost 4 parts (1p1n1u1w) 8879 | -5/Garrison | Garrison Relay disabled 8958 | -5/Garrison | Discovered new exit (range 13) 9188 | -5/Garrison | Build established: Bothacker-Mutant 9207 | -5/Garrison | Found embedded Infiltrators 9372 | -5/Garrison | Discovered new exit (range 8) 9578 | -5/Garrison | Triggered checkpoint 9646 | -5/Garrison | Garrison Relay disabled 9770 | -5/Garrison | Build established: Scavenger-Mutant 9822 | -5/Garrison | Triggered checkpoint 9945 | -5/Garrison | Rescued a captive Derelict 9945 | -5/Garrison | Rescued a captive Derelict 10067 | -5/Garrison | Discovered new exit (range 13) 10094 | -5/Garrison | Triggered checkpoint 10134 | -5/Garrison | Garrison Relay disabled 10197 | -5/Garrison | Entered Factory 10197 | -5/Factory | Accompanied by 2 allies 10747 | -5/Factory | Lost 4 parts (2u2w) 10818 | -5/Factory | Lost 10 parts (1p2n4u3w) 10931 | -5/Factory | Core integrity fell below 50% 10984 | -5/Factory | Identified exit to Upper Caves 11025 | -5/Factory | Lost 4 parts (1p1n2w) 11097 | -5/Factory | First assault squad dispatched 11198 | -5/Factory | Core integrity fell below 20% 11206 | -5/Factory | Destroyed by H-66 Slayer with Gauss Rifle Last Messages --------------- 11196_ Acquired Relay Coupler [NC]. 11197_ Slug penetrates Earth. 11197_ Penetrated by Slug. 11198_ Slug penetrates Fusion Modulator. 11198_ Relay Coupler [Sentry] destroyed. 11198_ K-01 Serf collects debris. 11198_ Acquired Plasma Cutter. 11199_ K-01 Serf collects debris. 11199_ R-10 Processor collects VTOL Module. 11200_ Penetrated by Slug. 11200_ Adv. System Shield destroyed. 11201_ Fusion Modulator explodes. 11201_ K-01 Serf collects debris. 11202_ Acquired VTOL Module. 11202_ Penetrated by Slug. 11203_ Slug penetrates R-10 Processor. 11203_ K-01 Serf collects debris. 11205_ Slug penetrates Wall. 11205_ Slug penetrates H-66 Slayer. 11206_ Penetrated by Slug. Map ----- +----------------------------------------------------+ | ?????????????????????????????????????????????????? | | ?????????????????????????????????????????????????? | | ?????????????????????????????????????????????????? | | ?????????????????????????????????????????????????? | | ?????????????????????????????????????????????????? | | ?????????????????????????????????????????????????? | | ?????????????????????????????????????????????????? | | ?????????????????????????????????????????????????? | | ?????????????????????????????????????????????????? | | ????????????????????????????????????????? ???????? | | ????????????????????????????????????????? #????? | | ???????????????????????????????????????? #????? | | ???????????????????????????????????????? #????? | | ???????????????????????????????????????? #????? | | ???????????????????????????????????????? #????? | | ???????????????????????????????????????? #????? | | ??????????????????????????????????????? #????? | | ??????????????????????????????????????? #????? | | ?????????????????????###########??????? +????? | | ?????????????????????# #??????? #????? | | ?????????????????????# """"""" #??????? #????? | | ?????????????????????# """"""" ######## #????? | | ?????????????????????# """"""" # #????? | | ?????????????????????+ """"""" # #????? | | ?????????????????????# h #????? | | ?????????????????????# %A@] #????? | | ?????????????????????# k ##???? | | ?????????????????????########## #;;;;;##??? | | ?????????????????????????????## h ;;; "###? | | ?????????????????????????????# #? | | ?????????????????????????????## #? | | ?????????????????????????????# ! "# | | ?????????????????????????????## ! "# | | ??????????????????????????????## !" "# | | ???????????????????????????????# " " | | ?????????????????????????????### " """# | | ?????????????????????????????# " """""## | | ?????????????????????????#+### + | | ??????????????????? # | | ?????????????????? ] # | | ?????????????????# + | | ?????????????????? # | | ?????????????????? # | | ?????????????????? ####### # | | ?????????????????? ???????# ####+##### | | ??????????????????? ????????########### ## | | ???????????????????????????????????????# ### | | ???????????????????????????????????????# #?? | | ???????????????????????????????????????# #?? | | ???????????????????????????????????????# #?? | +----------------------------------------------------+ Best States ------------- Heat Dissipation 94 Energy Generation 32 Energy Capacity 1275 Matter Stores 300 Matter Capacity 300 Sight Range 22 Terrain Scan Density 10 Jamming Range 14 Armor Coverage 1200 Resistance: TH 15 Weapon Cycling 20 Phase Shifting 5 Evasion (%) 55 Targeting Accuracy 6 Target Analysis 6 Core Analysis 6 Recoil Reduction 3 Offensive Hacking 10 Defensive Hacking 14 Relay Coupler Types 2 Relay Coupler Value 49 Authchip Count 1 Item Schematics ----------------- None Robot Schematics ------------------ None Fabricated ------------ Nothing Repaired ---------- Nothing Alien Tech Used ----------------- None Achievements -------------- None Challenges ------------ None Game ------ Seed ProjectileInsulatedWell Manual? 0 Play Time 02:04:27 Cumulative 149.1 hours Start 2025.07.08 @ 17:29:40 End 2025.07.09 @ 19:28:41 Sessions 3 Manual Loads 0 Difficulty Rogue Special Mode None Game No. 164 Rogue 164 Adventurer 0 Explorer 0 Win Type - Total 3 Types 1/0/0/1/0/0/0/0/0/1 Lore% 64 Gallery% 60 Achievement% 53 Wizard Run 0 Options --------- Layout 1 ASCII 0 Keyboard 1 Movement Numpad Keybinds 0 Fullscreen 1 Font 32/SmallcapsGlow Map View 77x35 Zoom Use 0% Tactical HUD 1 Map Filters NONE Filters NONE Steam 1 RUN: 027b02ea-9a73-4c65-8f9c-54713e5efa90